{"text_format":"3","workbook":"xlsx","n_sheets":14,"sheets":["поради","підсумок","січ","лют","бер","кві","тра","чер","лип","сер","вер","жов","лис","гру"],"not_rendered":{"charts":1,"defined_names":27},"read":"whole","date_system":"1900"}

{"sheet":"поради","index":0,"n_rows":18,"n_cols":1,"rows_kept":18}
["ПОРАДИ ІЗ ШАБЛОНУ"]
["Швидкий перехід між аркушем підсумка тенденцій витрат і аркушами витрат за кожен місяць"]
["Щоб швидко перейти до витрат за певний місяць, виберіть відповідне посилання над діаграмою. Наприклад, посилання Січ у клітинці B2. Потім, щоб повернутися на аркуш тенденцій витрат, виберіть посилання Підсумок у клітинці D1. "]
["Щоб повернутися до цього аркуша порад, на аркуші підсумка виберіть посилання в клітинці N2, а на аркушах місяців – у клітинці E1."]
["Додавання нового типу витрат до підсумка витрат або щомісячних витрат"]
["Підсумок витрат під діаграмою та відомості про витрати для кожного місяця розміщено в таблицях Excel. Щоб додати нові рядки до будь-якої таблиці Excel, виконайте одну з наведених нижче дій."]
[{"$f":"ROW(A1)&\". Якщо в таблиці немає рядка підсумків, почніть вводити під таблицею, і вона автоматично розшириться, коли ви натиснете клавішу табуляції або Enter.\"","v":"1. Якщо в таблиці немає рядка підсумків, почніть вводити під таблицею, і вона автоматично розшириться, коли ви натиснете клавішу табуляції або Enter."}]
[{"$f":"ROW(A2)&\". Розмістіть курсор в останній клітинці над рядком підсумків (наприклад, для останньої витрати) і натисніть клавішу табуляції.\"","v":"2. Розмістіть курсор в останній клітинці над рядком підсумків (наприклад, для останньої витрати) і натисніть клавішу табуляції."}]
[{"$f":"ROW(A3)&\". Клацніть правою кнопкою миші в таблиці, у спливаючому меню наведіть вказівник на пункт \"\"Вставити\"\", а потім виберіть команду \"\"Рядки таблиці вище\"\" або \"\"Рядки таблиці нижче\"\".\"","v":"3. Клацніть правою кнопкою миші в таблиці, у спливаючому меню наведіть вказівник на пункт \"Вставити\", а потім виберіть команду \"Рядки таблиці вище\" або \"Рядки таблиці нижче\"."}]
[{"$f":"ROW(A4)&\". Щоб збільшити кількість доступних рядків таблиці, перетягніть униз маркер змінення розміру таблиці в її нижньому правому куті.\"","v":"4. Щоб збільшити кількість доступних рядків таблиці, перетягніть униз маркер змінення розміру таблиці в її нижньому правому куті."}]
["Введіть витрату на аркуші підсумка в таблиці ПідсумокВитрат у стовпці Витрати."]
["Додайте суму витрати кожного типу на аркуші того місяця, якого ця витрата стосується."]
["Наприклад: \"Витрата 1\" відбувається із січня по червень, а також у грудні. "]
[{"$f":"ROW(A1)&\". Витрата 1 вводиться на аркуші підсумка в таблиці \"\"ПідсумокВитрат\"\" у стовпці \"\"Витрати\"\" (як заголовок для типу витрат).\"","v":"1. Витрата 1 вводиться на аркуші підсумка в таблиці \"ПідсумокВитрат\" у стовпці \"Витрати\" (як заголовок для типу витрат)."}]
[{"$f":"ROW(A2)&\". Введіть суму витрати на відповідному аркуші для кожного місяця, коли її здійснено.\"","v":"2. Введіть суму витрати на відповідному аркуші для кожного місяця, коли її здійснено."}]
[{"$f":"ROW(A3)&\". На аркуші кожного місяця для стовпця \"\"Категорія\"\" створюється список категорій на основі типу витрат з аркуша \"\"ПідсумокВитрат\"\".\"","v":"3. На аркуші кожного місяця для стовпця \"Категорія\" створюється список категорій на основі типу витрат з аркуша \"ПідсумокВитрат\"."}]
[{"$f":"ROW(A4)&\". У цьому списку категорій виберіть відповідний тип витрат для введеної суми.\"","v":"4. У цьому списку категорій виберіть відповідний тип витрат для введеної суми."}]
[{"$f":"ROW(A5)&\". Щоб додати нові витрати за будь-який місяць, додайте новий рядок до таблиці \"\"ПідсумокВитрат\"\" на аркуші підсумків, а потім введіть відомості про витрати на аркуші відповідного місяця.\"","v":"5. Щоб додати нові витрати за будь-який місяць, додайте новий рядок до таблиці \"ПідсумокВитрат\" на аркуші підсумків, а потім введіть відомості про витрати на аркуші відповідного місяця."}]

{"sheet":"підсумок","index":1,"n_rows":10,"n_cols":15,"rows_kept":10}
["ТЕНДЕНЦІЇ ВИТРАТ"]
[null,"Січ","Лют","Бер","Кві","Тра","Чер","Лип","Сер","Вер","Жов","Лис","Гру","Поради"]
[]
["Витрати","Січ","Лют","Бер","Кві","Тра","Чер","Лип","Сер","Вер","Жов","Лис","Гру","Підсумок","Тенденція"]
["Витрата 1",{"$f":"SUMIFS(ExpJan[Сума],ExpJan[Категорія],ПідсумокВитрат[Витрати])","v":{"v":33,"d":"33.00"}},{"$f":"SUMIFS(ExpFeb[Сума],ExpFeb[Категорія],ПідсумокВитрат[Витрати])","v":{"v":375,"d":"375.00"}},{"$f":"SUMIFS(ExpMar[Сума],ExpMar[Категорія],ПідсумокВитрат[Витрати])","v":{"v":33,"d":"33.00"}},{"$f":"SUMIFS(ExpApr[Сума],ExpApr[Категорія],ПідсумокВитрат[Витрати])","v":{"v":45,"d":"45.00"}},{"$f":"SUMIFS(ExpMay[Сума],ExpMay[Категорія],ПідсумокВитрат[Витрати])","v":{"v":375,"d":"375.00"}},{"$f":"SUMIFS(ExpJun[Сума],ExpJun[Категорія],ПідсумокВитрат[Витрати])","v":{"v":201,"d":"201.00"}},{"$f":"SUMIFS(ExpJul[Сума],ExpJul[Категорія],ПідсумокВитрат[Витрати])","v":{"v":0,"d":"0.00"}},{"$f":"SUMIFS(ExpAug[Сума],ExpAug[Категорія],ПідсумокВитрат[Витрати])","v":{"v":0,"d":"0.00"}},{"$f":"SUMIFS(ExpSep[Сума],ExpSep[Категорія],ПідсумокВитрат[Витрати])","v":{"v":0,"d":"0.00"}},{"$f":"SUMIFS(ExpOct[Сума],ExpOct[Категорія],ПідсумокВитрат[Витрати])","v":{"v":0,"d":"0.00"}},{"$f":"SUMIFS(ExpNov[Сума],ExpNov[Категорія],ПідсумокВитрат[Витрати])","v":{"v":0,"d":"0.00"}},{"$f":"SUMIFS(ExpDec[Сума],ExpDec[Категорія],ПідсумокВитрат[Витрати])","v":{"v":201,"d":"201.00"}},{"$f":"SUM(ПідсумокВитрат[[#This Row],[Січ]:[Гру]])","v":{"v":1263,"d":"1,263.00"}}]
["Витрата 2",{"$f":"SUMIFS(ExpJan[Сума],ExpJan[Категорія],ПідсумокВитрат[Витрати])","v":{"v":238,"d":"238.00"}},{"$f":"SUMIFS(ExpFeb[Сума],ExpFeb[Категорія],ПідсумокВитрат[Витрати])","v":{"v":238,"d":"238.00"}},{"$f":"SUMIFS(ExpMar[Сума],ExpMar[Категорія],ПідсумокВитрат[Витрати])","v":{"v":238,"d":"238.00"}},{"$f":"SUMIFS(ExpApr[Сума],ExpApr[Категорія],ПідсумокВитрат[Витрати])","v":{"v":123,"d":"123.00"}},{"$f":"SUMIFS(ExpMay[Сума],ExpMay[Категорія],ПідсумокВитрат[Витрати])","v":{"v":111,"d":"111.00"}},{"$f":"SUMIFS(ExpJun[Сума],ExpJun[Категорія],ПідсумокВитрат[Витрати])","v":{"v":98,"d":"98.00"}},{"$f":"SUMIFS(ExpJul[Сума],ExpJul[Категорія],ПідсумокВитрат[Витрати])","v":{"v":0,"d":"0.00"}},{"$f":"SUMIFS(ExpAug[Сума],ExpAug[Категорія],ПідсумокВитрат[Витрати])","v":{"v":0,"d":"0.00"}},{"$f":"SUMIFS(ExpSep[Сума],ExpSep[Категорія],ПідсумокВитрат[Витрати])","v":{"v":0,"d":"0.00"}},{"$f":"SUMIFS(ExpOct[Сума],ExpOct[Категорія],ПідсумокВитрат[Витрати])","v":{"v":0,"d":"0.00"}},{"$f":"SUMIFS(ExpNov[Сума],ExpNov[Категорія],ПідсумокВитрат[Витрати])","v":{"v":0,"d":"0.00"}},{"$f":"SUMIFS(ExpDec[Сума],ExpDec[Категорія],ПідсумокВитрат[Витрати])","v":{"v":440,"d":"440.00"}},{"$f":"SUM(ПідсумокВитрат[[#This Row],[Січ]:[Гру]])","v":{"v":1486,"d":"1,486.00"}}]
["Витрата 3",{"$f":"SUMIFS(ExpJan[Сума],ExpJan[Категорія],ПідсумокВитрат[Витрати])","v":{"v":110,"d":"110.00"}},{"$f":"SUMIFS(ExpFeb[Сума],ExpFeb[Категорія],ПідсумокВитрат[Витрати])","v":{"v":110,"d":"110.00"}},{"$f":"SUMIFS(ExpMar[Сума],ExpMar[Категорія],ПідсумокВитрат[Витрати])","v":{"v":110,"d":"110.00"}},{"$f":"SUMIFS(ExpApr[Сума],ExpApr[Категорія],ПідсумокВитрат[Витрати])","v":{"v":125,"d":"125.00"}},{"$f":"SUMIFS(ExpMay[Сума],ExpMay[Категорія],ПідсумокВитрат[Витрати])","v":{"v":333,"d":"333.00"}},{"$f":"SUMIFS(ExpJun[Сума],ExpJun[Категорія],ПідсумокВитрат[Витрати])","v":{"v":122,"d":"122.00"}},{"$f":"SUMIFS(ExpJul[Сума],ExpJul[Категорія],ПідсумокВитрат[Витрати])","v":{"v":0,"d":"0.00"}},{"$f":"SUMIFS(ExpAug[Сума],ExpAug[Категорія],ПідсумокВитрат[Витрати])","v":{"v":0,"d":"0.00"}},{"$f":"SUMIFS(ExpSep[Сума],ExpSep[Категорія],ПідсумокВитрат[Витрати])","v":{"v":0,"d":"0.00"}},{"$f":"SUMIFS(ExpOct[Сума],ExpOct[Категорія],ПідсумокВитрат[Витрати])","v":{"v":0,"d":"0.00"}},{"$f":"SUMIFS(ExpNov[Сума],ExpNov[Категорія],ПідсумокВитрат[Витрати])","v":{"v":0,"d":"0.00"}},{"$f":"SUMIFS(ExpDec[Сума],ExpDec[Категорія],ПідсумокВитрат[Витрати])","v":{"v":122,"d":"122.00"}},{"$f":"SUM(ПідсумокВитрат[[#This Row],[Січ]:[Гру]])","v":{"v":1032,"d":"1,032.00"}}]
["Витрата 4",{"$f":"SUMIFS(ExpJan[Сума],ExpJan[Категорія],ПідсумокВитрат[Витрати])","v":{"v":426,"d":"426.00"}},{"$f":"SUMIFS(ExpFeb[Сума],ExpFeb[Категорія],ПідсумокВитрат[Витрати])","v":{"v":84,"d":"84.00"}},{"$f":"SUMIFS(ExpMar[Сума],ExpMar[Категорія],ПідсумокВитрат[Витрати])","v":{"v":84,"d":"84.00"}},{"$f":"SUMIFS(ExpApr[Сума],ExpApr[Категорія],ПідсумокВитрат[Витрати])","v":{"v":426,"d":"426.00"}},{"$f":"SUMIFS(ExpMay[Сума],ExpMay[Категорія],ПідсумокВитрат[Витрати])","v":{"v":125,"d":"125.00"}},{"$f":"SUMIFS(ExpJun[Сума],ExpJun[Категорія],ПідсумокВитрат[Витрати])","v":{"v":187,"d":"187.00"}},{"$f":"SUMIFS(ExpJul[Сума],ExpJul[Категорія],ПідсумокВитрат[Витрати])","v":{"v":0,"d":"0.00"}},{"$f":"SUMIFS(ExpAug[Сума],ExpAug[Категорія],ПідсумокВитрат[Витрати])","v":{"v":0,"d":"0.00"}},{"$f":"SUMIFS(ExpSep[Сума],ExpSep[Категорія],ПідсумокВитрат[Витрати])","v":{"v":0,"d":"0.00"}},{"$f":"SUMIFS(ExpOct[Сума],ExpOct[Категорія],ПідсумокВитрат[Витрати])","v":{"v":0,"d":"0.00"}},{"$f":"SUMIFS(ExpNov[Сума],ExpNov[Категорія],ПідсумокВитрат[Витрати])","v":{"v":0,"d":"0.00"}},{"$f":"SUMIFS(ExpDec[Сума],ExpDec[Категорія],ПідсумокВитрат[Витрати])","v":{"v":187,"d":"187.00"}},{"$f":"SUM(ПідсумокВитрат[[#This Row],[Січ]:[Гру]])","v":{"v":1519,"d":"1,519.00"}}]
["Витрата 5",{"$f":"SUMIFS(ExpJan[Сума],ExpJan[Категорія],ПідсумокВитрат[Витрати])","v":{"v":54,"d":"54.00"}},{"$f":"SUMIFS(ExpFeb[Сума],ExpFeb[Категорія],ПідсумокВитрат[Витрати])","v":{"v":54,"d":"54.00"}},{"$f":"SUMIFS(ExpMar[Сума],ExpMar[Категорія],ПідсумокВитрат[Витрати])","v":{"v":109,"d":"109.00"}},{"$f":"SUMIFS(ExpApr[Сума],ExpApr[Категорія],ПідсумокВитрат[Витрати])","v":{"v":98,"d":"98.00"}},{"$f":"SUMIFS(ExpMay[Сума],ExpMay[Категорія],ПідсумокВитрат[Витрати])","v":{"v":33,"d":"33.00"}},{"$f":"SUMIFS(ExpJun[Сума],ExpJun[Категорія],ПідсумокВитрат[Витрати])","v":{"v":441,"d":"441.00"}},{"$f":"SUMIFS(ExpJul[Сума],ExpJul[Категорія],ПідсумокВитрат[Витрати])","v":{"v":0,"d":"0.00"}},{"$f":"SUMIFS(ExpAug[Сума],ExpAug[Категорія],ПідсумокВитрат[Витрати])","v":{"v":0,"d":"0.00"}},{"$f":"SUMIFS(ExpSep[Сума],ExpSep[Категорія],ПідсумокВитрат[Витрати])","v":{"v":0,"d":"0.00"}},{"$f":"SUMIFS(ExpOct[Сума],ExpOct[Категорія],ПідсумокВитрат[Витрати])","v":{"v":0,"d":"0.00"}},{"$f":"SUMIFS(ExpNov[Сума],ExpNov[Категорія],ПідсумокВитрат[Витрати])","v":{"v":0,"d":"0.00"}},{"$f":"SUMIFS(ExpDec[Сума],ExpDec[Категорія],ПідсумокВитрат[Витрати])","v":{"v":99,"d":"99.00"}},{"$f":"SUM(ПідсумокВитрат[[#This Row],[Січ]:[Гру]])","v":{"v":888,"d":"888.00"}}]
["Підсумок",{"$f":"SUBTOTAL(109,ПідсумокВитрат[Січ])","v":{"v":861,"d":"861.00"}},{"$f":"SUBTOTAL(109,ПідсумокВитрат[Лют])","v":{"v":861,"d":"861.00"}},{"$f":"SUBTOTAL(109,ПідсумокВитрат[Бер])","v":{"v":574,"d":"574.00"}},{"$f":"SUBTOTAL(109,ПідсумокВитрат[Кві])","v":{"v":817,"d":"817.00"}},{"$f":"SUBTOTAL(109,ПідсумокВитрат[Тра])","v":{"v":977,"d":"977.00"}},{"$f":"SUBTOTAL(109,ПідсумокВитрат[Чер])","v":{"v":1049,"d":"1,049.00"}},{"$f":"SUBTOTAL(109,ПідсумокВитрат[Лип])","v":{"v":0,"d":"0.00"}},{"$f":"SUBTOTAL(109,ПідсумокВитрат[Сер])","v":{"v":0,"d":"0.00"}},{"$f":"SUBTOTAL(109,ПідсумокВитрат[Вер])","v":{"v":0,"d":"0.00"}},{"$f":"SUBTOTAL(109,ПідсумокВитрат[Жов])","v":{"v":0,"d":"0.00"}},{"$f":"SUBTOTAL(109,ПідсумокВитрат[Лис])","v":{"v":0,"d":"0.00"}},{"$f":"SUBTOTAL(109,ПідсумокВитрат[Гру])","v":{"v":1049,"d":"1,049.00"}},{"$f":"SUBTOTAL(109,ПідсумокВитрат[Підсумок])","v":{"v":6188,"d":"6,188.00"}}]

{"sheet":"січ","index":2,"n_rows":9,"n_cols":5,"rows_kept":9,"merged":[[0,0,0,2]]}
["ВИТРАТИ В СІЧНІ",null,null,"Підсумок","Поради"]
["Дата","Замовл. на придб. №","Сума","Категорія","Опис"]
[{"$f":"DATE(YEAR(TODAY()),1,4)","v":"2016-01-04"},"A-12345",{"v":33,"d":"33.00"},"Витрата 1","Матеріали"]
[{"$f":"DATE(YEAR(TODAY()),1,5)","v":"2016-01-05"},"A-12346",{"v":238,"d":"238.00"},"Витрата 2"]
[null,null,{"v":342,"d":"342.00"},"Витрата 4"]
[null,null,{"v":110,"d":"110.00"},"Витрата 3"]
[null,null,{"v":84,"d":"84.00"},"Витрата 4"]
[null,null,{"v":54,"d":"54.00"},"Витрата 5"]
["Підсумок",null,{"$f":"SUBTOTAL(109,ExpJan[Сума])","v":{"v":861,"d":"861.00"}}]

{"sheet":"лют","index":3,"n_rows":9,"n_cols":5,"rows_kept":9,"merged":[[0,0,0,2]]}
["ВИТРАТИ В ЛЮТОМУ",null,null,"Підсумок","Поради"]
["Дата","Замовл. на придб. №","Сума","Категорія","Опис"]
[{"$f":"DATE(YEAR(TODAY()),2,3)","v":"2016-02-03"},"A-12345",{"v":33,"d":"33.00"},"Витрата 1","Матеріали"]
[{"$f":"DATE(YEAR(TODAY()),2,4)","v":"2016-02-04"},"A-12346",{"v":238,"d":"238.00"},"Витрата 2"]
[null,null,{"v":342,"d":"342.00"},"Витрата 1"]
[null,null,{"v":110,"d":"110.00"},"Витрата 3"]
[null,null,{"v":84,"d":"84.00"},"Витрата 4"]
[null,null,{"v":54,"d":"54.00"},"Витрата 5"]
["Підсумок",null,{"$f":"SUBTOTAL(109,ExpFeb[Сума])","v":{"v":861,"d":"861.00"}}]

{"sheet":"бер","index":4,"n_rows":9,"n_cols":5,"rows_kept":9,"merged":[[0,0,0,2]]}
["ВИТРАТИ В БЕРЕЗНІ",null,null,"Підсумок","Поради"]
["Дата","Замовл. на придб. №","Сума","Категорія","Опис"]
[{"$f":"DATE(YEAR(TODAY()),3,5)","v":"2016-03-05"},"A-12345",{"v":33,"d":"33.00"},"Витрата 1","Матеріали"]
[{"$f":"DATE(YEAR(TODAY()),3,6)","v":"2016-03-06"},"A-12346",{"v":238,"d":"238.00"},"Витрата 2"]
[null,null,{"v":55,"d":"55.00"},"Витрата 5"]
[null,null,{"v":110,"d":"110.00"},"Витрата 3"]
[null,null,{"v":84,"d":"84.00"},"Витрата 4"]
[null,null,{"v":54,"d":"54.00"},"Витрата 5"]
["Підсумок",null,{"$f":"SUBTOTAL(109,ExpMar[Сума])","v":{"v":574,"d":"574.00"}}]

{"sheet":"кві","index":5,"n_rows":9,"n_cols":5,"rows_kept":9,"merged":[[0,0,0,2]]}
["ВИТРАТИ У КВІТНІ",null,null,"Підсумок","Поради"]
["Дата","Замовл. на придб. №","Сума","Категорія","Опис"]
[{"$f":"DATE(YEAR(TODAY()),4,4)","v":"2016-04-04"},"A-12345",{"v":45,"d":"45.00"},"Витрата 1","Матеріали"]
[{"$f":"DATE(YEAR(TODAY()),4,8)","v":"2016-04-08"},"A-12346",{"v":123,"d":"123.00"},"Витрата 2"]
[null,null,{"v":342,"d":"342.00"},"Витрата 4"]
[null,null,{"v":125,"d":"125.00"},"Витрата 3"]
[null,null,{"v":84,"d":"84.00"},"Витрата 4"]
[null,null,{"v":98,"d":"98.00"},"Витрата 5"]
["Підсумок",null,{"$f":"SUBTOTAL(109,ExpApr[Сума])","v":{"v":817,"d":"817.00"}}]

{"sheet":"тра","index":6,"n_rows":9,"n_cols":5,"rows_kept":9,"merged":[[0,0,0,2]]}
["ВИТРАТИ В ТРАВНІ",null,null,"Підсумок","Поради"]
["Дата","Замовл. на придб. №","Сума","Категорія","Опис"]
[{"$f":"DATE(YEAR(TODAY()),5,3)","v":"2016-05-03"},"A-12345",{"v":33,"d":"33.00"},"Витрата 1","Матеріали"]
[{"$f":"DATE(YEAR(TODAY()),5,8)","v":"2016-05-08"},"A-12346",{"v":111,"d":"111.00"},"Витрата 2"]
[null,null,{"v":342,"d":"342.00"},"Витрата 1"]
[null,null,{"v":333,"d":"333.00"},"Витрата 3"]
[null,null,{"v":125,"d":"125.00"},"Витрата 4"]
[null,null,{"v":33,"d":"33.00"},"Витрата 5"]
["Підсумок",null,{"$f":"SUBTOTAL(109,ExpMay[Сума])","v":{"v":977,"d":"977.00"}}]

{"sheet":"чер","index":7,"n_rows":9,"n_cols":5,"rows_kept":9,"merged":[[0,0,0,2]]}
["ВИТРАТІ В ЧЕРВНІ",null,null,"Підсумок","Поради"]
["Дата","Замовл. на придб. №","Сума","Категорія","Опис"]
[{"$f":"DATE(YEAR(TODAY()),6,7)","v":"2016-06-07"},"A-12345",{"v":201,"d":"201.00"},"Витрата 1","Матеріали"]
[{"$f":"DATE(YEAR(TODAY()),6,8)","v":"2016-06-08"},"A-12346",{"v":98,"d":"98.00"},"Витрата 2"]
[null,null,{"v":342,"d":"342.00"},"Витрата 5"]
[null,null,{"v":122,"d":"122.00"},"Витрата 3"]
[null,null,{"v":187,"d":"187.00"},"Витрата 4"]
[null,null,{"v":99,"d":"99.00"},"Витрата 5"]
["Підсумок",null,{"$f":"SUBTOTAL(109,ExpJun[Сума])","v":{"v":1049,"d":"1,049.00"}}]

{"sheet":"лип","index":8,"n_rows":9,"n_cols":5,"rows_kept":9,"merged":[[0,0,0,2]]}
["ВИТРАТІ В ЛИПНІ",null,null,"Підсумок","Поради"]
["Дата","Замовл. на придб. №","Сума","Категорія","Опис"]
[{"$f":"DATE(YEAR(TODAY()),7,9)","v":"2016-07-09"},"A-12345",null,"Витрата 1","Матеріали"]
[{"$f":"DATE(YEAR(TODAY()),7,14)","v":"2016-07-14"},"A-12346",null,"Витрата 2"]
[{"$nulls":3},"Витрата 2"]
[{"$nulls":3},"Витрата 3"]
[{"$nulls":3},"Витрата 4"]
[{"$nulls":3},"Витрата 5"]
["Підсумок",null,{"$f":"SUBTOTAL(109,ExpJul[Сума])","v":{"v":0,"d":"0.00"}}]

{"sheet":"сер","index":9,"n_rows":9,"n_cols":5,"rows_kept":9,"merged":[[0,0,0,2]]}
["ВИТРАТИ В СЕРПНІ",null,null,"Підсумок","Поради"]
["Дата","Замовл. на придб. №","Сума","Категорія","Опис"]
[{"$f":"DATE(YEAR(TODAY()),8,8)","v":"2016-08-08"},"A-12345",null,"Витрата 1","Матеріали"]
[{"$f":"DATE(YEAR(TODAY()),8,9)","v":"2016-08-09"},"A-12346",null,"Витрата 2"]
[{"$nulls":3},"Витрата 2"]
[{"$nulls":3},"Витрата 3"]
[{"$nulls":3},"Витрата 4"]
[{"$nulls":3},"Витрата 5"]
["Підсумок",null,{"$f":"SUBTOTAL(109,ExpAug[Сума])","v":{"v":0,"d":"0.00"}}]

{"sheet":"вер","index":10,"n_rows":9,"n_cols":5,"rows_kept":9,"merged":[[0,0,0,2]]}
["ВИТРАТИ У ВЕРЕСНІ",null,null,"Підсумок","Поради"]
["Дата","Замовл. на придб. №","Сума","Категорія","Опис"]
[{"$f":"DATE(YEAR(TODAY()),9,9)","v":"2016-09-09"},"A-12345",null,"Витрата 1","Матеріали"]
[{"$f":"DATE(YEAR(TODAY()),9,15)","v":"2016-09-15"},"A-12346",null,"Витрата 2"]
[{"$nulls":3},"Витрата 2"]
[{"$nulls":3},"Витрата 3"]
[{"$nulls":3},"Витрата 4"]
[{"$nulls":3},"Витрата 5"]
["Підсумок",null,{"$f":"SUBTOTAL(109,ExpSep[Сума])","v":{"v":0,"d":"0.00"}}]

{"sheet":"жов","index":11,"n_rows":9,"n_cols":5,"rows_kept":9,"merged":[[0,0,0,2]]}
["ВИТРАТИ В ЖОВТНІ",null,null,"Підсумок","Поради"]
["Дата","Замовл. на придб. №","Сума","Категорія","Опис"]
[{"$f":"DATE(YEAR(TODAY()),10,10)","v":"2016-10-10"},"A-12345",null,"Витрата 1","Матеріали"]
[{"$f":"DATE(YEAR(TODAY()),10,21)","v":"2016-10-21"},"A-12346",null,"Витрата 2"]
[{"$nulls":3},"Витрата 2"]
[{"$nulls":3},"Витрата 3"]
[{"$nulls":3},"Витрата 4"]
[{"$nulls":3},"Витрата 5"]
["Підсумок",null,{"$f":"SUBTOTAL(109,ExpOct[Сума])","v":{"v":0,"d":"0.00"}}]

{"sheet":"лис","index":12,"n_rows":9,"n_cols":5,"rows_kept":9,"merged":[[0,0,0,2]]}
["ВИТРАТИ В ЛИСТОПАДІ",null,null,"Підсумок","Поради"]
["Дата","Замовл. на придб. №","Сума","Категорія","Опис"]
[{"$f":"DATE(YEAR(TODAY()),11,14)","v":"2016-11-14"},"A-12345",null,"Витрата 1","Матеріали"]
[{"$f":"DATE(YEAR(TODAY()),11,21)","v":"2016-11-21"},"A-12346",null,"Витрата 2"]
[{"$nulls":3},"Витрата 2"]
[{"$nulls":3},"Витрата 3"]
[{"$nulls":3},"Витрата 4"]
[{"$nulls":3},"Витрата 5"]
["Підсумок",null,{"$f":"SUBTOTAL(109,ExpNov[Сума])","v":{"v":0,"d":"0.00"}}]

{"sheet":"гру","index":13,"n_rows":9,"n_cols":5,"rows_kept":9,"merged":[[0,0,0,2]]}
["ВИТРАТИ В ГРУДНІ",null,null,"Підсумок","Поради"]
["Дата","Замовл. на придб. №","Сума","Категорія","Опис"]
[{"$f":"DATE(YEAR(TODAY()),12,2)","v":"2016-12-02"},"A-12345",{"v":201,"d":"201.00"},"Витрата 1","Матеріали"]
[{"$f":"DATE(YEAR(TODAY()),12,24)","v":"2016-12-24"},"A-12346",{"v":98,"d":"98.00"},"Витрата 2"]
[null,null,{"v":342,"d":"342.00"},"Витрата 2"]
[null,null,{"v":122,"d":"122.00"},"Витрата 3"]
[null,null,{"v":187,"d":"187.00"},"Витрата 4"]
[null,null,{"v":99,"d":"99.00"},"Витрата 5"]
["Підсумок",null,{"$f":"SUBTOTAL(109,ExpDec[Сума])","v":{"v":1049,"d":"1,049.00"}}]